[Event "1st FIDE Olympiad DIS 2023"]
[Site "Belgrade"]
[Date "2023.01.30"]
[Round "1.26"]
[White "Tonic, Milos"]
[Black "Syed Ejaz Husain"]
[Result "1-0"]
[ECO "D31"]
[WhiteElo "2018"]
[BlackElo "1952"]
[Annotator "TA"]
[PlyCount "79"]
[EventDate "2023.01.30"]
[EventType "team-tourn"]
[EventCountry "SRB"]
[SourceTitle "playchess.com"]
[Source "ChessBase"]
[SourceQuality "1"]
[WhiteTeam "Serbia"]
[BlackTeam "Bangladesh"]
[WhiteTeamCountry "SRB"]
[TimeControl "40/5400+30:1800+30"]

{[%evp 9,79,0,0,-13,-13,-14,-12,-30,-32,-34,12,18,30,0,8,0,19,24,20,18,19,24,25,23,48,44,62,58,202,119,116,113,111,84,92,74,425,133,128,126,137,141,146,145,212,210,205,60,62,32,36,32,33,3,3,3,3,3,3,3,3,0,0,0,0,0,0,0,0,0,33,33]} 1. c4 {[%emt 0:00:06]} e6 {[%emt 0:01:07]} 2. Nc3 {[%emt 0:00:45]} d5 {[%emt 0:00:27]} 3. cxd5 {[%emt 0:00:53]} exd5 {[%emt 0:00:00]} 4. d4 {[%emt 0:00:52]} c6 {[%emt 0:00:32]} 5. Qc2 {[%emt 0:02:11]} g6 {[%emt 0:02:47]} 6. Nf3 {[%emt 0:01:08] D31: Queen's Gambit Declined: Semi-Slav without ...Nf6 (+ Marshall Gambit and Noteboom) and Exchange Variation lines without ...Nf6.} Bf5 {[%emt 0:00:37]} 7. Qb3 {[%emt 0:02:11]} Qb6 {[%emt 0:01:41] [#]} 8. Bg5 $146 {[%emt 0:21:36] The position is equal.} ({Predecessor:} 8. Bf4 Nd7 9. e3 Ngf6 10. Be2 Be7 11. O-O O-O 12. Rfc1 Rfe8 13. Nh4 Be6 14. Qc2 {½-½ Abraham,J (2039)-Nguyen,J (2163) Noblesville Snow Memorial 2022 (4)}) 8... Qxb3 {[%emt 0:02:39]} 9. axb3 {[%emt 0:00:21]} Bg7 {[%emt 0:08:28]} (9... Nd7 $15) 10. e3 $11 {[%emt 0:09:26]} Nd7 {[%emt 0:04:32]} 11. Be2 {[%emt 0:07:47]} a6 {[%emt 0:01:40]} 12. Nd2 {[%emt 0:05:40]} Ngf6 {[%emt 0:05:55]} 13. b4 {[%emt 0:04:26][%cal Ob4b5]} O-O {[%emt 0:01:59]} 14. O-O {[%emt 0:04:39]} Rfe8 {[%emt 0:08:56]} 15. Nb3 $1 {[%emt 0:01:52]} Bf8 {[%emt 0:04:59]} 16. Nc5 {[%emt 0:01:36]} Ra7 {[%emt 0:07:52]} 17. Ra2 {[%emt 0:03:20]} Rea8 {[%emt 0:07:32]} 18. Rfa1 {[%emt 0:01:50][%cal Ob4b5] White is much more active. The black rooks are badly placed.} b6 {[%emt 0:10:23]} ({Better is} 18... Ne4 $14 19. Bf4 Be7) 19. Nxa6 {[%emt 0:06:05]} ({Don't do} 19. Rxa6 $6 Rxa6 20. Rxa6 Rxa6 21. Nxa6 b5 $16) (19. Nxd7 $1 $18 Nxd7 20. b5 (20. Bxa6 h6 $16) (20. Rxa6 Rxa6 21. Rxa6 Rc8 $18) 20... cxb5 21. Nxb5 (21. Nxd5 Be6 $16)) 19... Ne4 {[%emt 0:08:38]} 20. Nxe4 {[%emt 0:08:15]} dxe4 {[%emt 0:00:23]} 21. Bf4 {[%emt 0:03:12]} Nf6 {[%emt 0:01:16]} 22. Bc4 {[%emt 0:04:38]} Bc8 $2 {[%emt 0:03:54][%mdl 8192]} (22... Rc8 $16 {is tougher.}) 23. Nb8 $2 {[%emt 0:02:55]} (23. Nc7 $18 {and the rest is easy.} Rxa2 24. Bxa2) 23... Rxa2 $16 {[%emt 0:00:41]} 24. Rxa2 {[%emt 0:00:17]} Rxa2 {[%emt 0:00:31]} 25. Bxa2 {[%emt 0:00:06]} Bb7 {[%emt 0:00:29]} 26. Be5 {[%emt 0:01:41]} Nd5 {[%emt 0:04:01] [#]} (26... Ng4 $16) 27. Bxd5 $1 $18 {[%emt 0:01:56]} cxd5 {[%emt 0:00:16][%mdl 4096] Endgame [#] KBB-KBN} 28. Nd7 {[%emt 0:00:08]} (28. b5 $1 $18) 28... Bxb4 $14 {[%emt 0:00:38]} 29. Nxb6 {[%emt 0:00:37]} Kf8 {[%emt 0:07:10]} 30. Na4 {[%emt 0:01:07]} Ke7 {[%emt 0:00:33]} 31. Bc7 {[%emt 0:01:23]} Kd7 {[%emt 0:00:47]} 32. Bb6 {[%emt 0:00:25]} Kc6 {[%emt 0:01:22]} 33. Bc5 {[%emt 0:00:31]} Bd2 {[%emt 0:00:43]} 34. Nc3 {[%emt 0:01:31]} Ba6 35. g3 {[%emt 0:00:18]} Bc4 {[%emt 0:00:35]} 36. Bb4 {[%emt 0:00:58][%cal Oc3d5]} Bc1 {[%emt 0:00:33]} 37. Ba3 {[%emt 0:00:28]} Bd2 {[%emt 0:02:13]} 38. Bb4 {[%emt 0:00:29][%cal Oc3d5]} Bc1 {[%emt 0:00:13]} 39. Ba3 {[%emt 0:00:22]} Bd3 {[%emt 0:00:28]} 40. Na2 {[%emt 0:00:53] Black escapes into a draw.   Weighted Error Value: White=0.27 (precise) /Black=0.31} 1-0

[Event "1st FIDE Olympiad DIS 2023"]
[Site "Belgrade"]
[Date "2023.01.30"]
[Round "1.27"]
[White "Sarkar, Bappi"]
[Black "Zivic, Dragan"]
[Result "1/2-1/2"]
[ECO "E11"]
[WhiteElo "1778"]
[BlackElo "2186"]
[Annotator "TA"]
[PlyCount "90"]
[EventDate "2023.01.30"]
[EventType "team-tourn"]
[EventCountry "SRB"]
[SourceTitle "playchess.com"]
[Source "ChessBase"]
[SourceQuality "1"]
[WhiteTeam "Bangladesh"]
[BlackTeam "Serbia"]
[WhiteTeamCountry "BAN"]
[BlackTeamCountry "SRB"]
[TimeControl "40/5400+30:1800+30"]

{[%evp 13,90,7,9,0,25,14,12,-16,6,5,10,19,24,31,22,22,24,28,36,11,10,11,19,-71,-77,-70,-2,-16,0,0,-14,-11,0,-12,-6,-9,-21,-8,0,-56,-47,-35,-26,-86,-37,-39,2,-76,-76,-183,-183,-213,-119,-207,-201,-354,-358,-329,-216,-259,-249,-225,-84,-75,50,47,48,51,68,33,138,113,122,51,50,18,17,17,61]} 1. d4 {[%emt 0:00:09]} Nf6 {[%emt 0:00:16]} 2. c4 {[%emt 0:00:33]} e6 {[%emt 0:00:10]} 3. Nf3 {[%emt 0:00:31]} Bb4+ {[%emt 0:00:07]} 4. Bd2 {[%emt 0:00:50]} Qe7 {[%emt 0:00:27]} 5. Qc2 {[%emt 0:04:59]} O-O {[%emt 0:00:52]} 6. e3 {[%emt 0:02:28]} Bxd2+ {[%emt 0:01:29]} 7. Nbxd2 {[%emt 0:00:06]} d6 {[%emt 0:01:58]} 8. Bd3 {[%emt 0:02:46] E11: Bogo-Indian.} c5 {[%emt 0:07:31]} 9. O-O {[%emt 0:05:37]} b6 {[%emt 0:03:07] [#]} 10. Ng5 $146 {[%emt 0:08:50] dxc5 would be deadly.} ({Predecessor:} 10. Ne4 Nbd7 11. dxc5 bxc5 12. Rad1 Ne8 13. Neg5 g6 14. Be4 Rb8 15. Bc6 Rb6 16. Bb5 {½-½ Jorgensen,P (2365)-Tanggaard,H (2410) DEN-ch corr Denmark 1996}) 10... h6 {[%emt 0:01:33]} 11. Nh7 {[%emt 0:03:53]} Rd8 {[%emt 0:02:19] aiming for ...Ne8.} 12. Nxf6+ {[%emt 0:11:28]} Qxf6 {[%emt 0:02:52]} 13. dxc5 {[%emt 0:01:06]} bxc5 {[%emt 0:01:41]} 14. Bh7+ {[%emt 0:03:07][%cal Bd3h7,Bh7e4,Be4f3][%mdl 32]} (14. Be4 $5 d5 $8 15. Bf3 $11) 14... Kh8 $1 {[%emt 0:01:48]} 15. Be4 {[%emt 0:04:00] Repels g6} d5 {[%emt 0:00:23]} 16. cxd5 {[%emt 0:00:34]} exd5 {[%emt 0:00:24]} 17. Bf3 {[%emt 0:01:39]} Na6 {[%emt 0:03:03]} 18. Rac1 {[%emt 0:14:58]} (18. e4 $11) 18... Rb8 $17 {[%emt 0:05:59]} 19. b3 {[%emt 0:03:47]} Bf5 {[%emt 0:02:18]} ({Better is} 19... Nb4 $1 $15 20. Qb1 (20. Qxc5 Ba6 $17) 20... Ba6) 20. Qc3 {[%emt 0:10:48]} d4 {[%emt 0:07:43]} 21. exd4 {[%emt 0:00:40]} cxd4 {[%emt 0:01:19]} 22. Qc6 {[%emt 0:02:15]} Rd6 {[%emt 0:05:34]} 23. Qc4 {[%emt 0:05:56]} Rb4 {[%emt 0:06:25]} 24. Qe2 {[%emt 0:01:35]} Re6 $36 {[%emt 0:01:42][%mdl 2048] Inhibits Qe8+. White is under pressure.} 25. Qd1 {[%emt 0:00:18]} Rb8 {[%emt 0:00:44]} 26. Re1 {[%emt 0:00:29]} (26. a3 $11) 26... Nb4 $15 {[%emt 0:18:15] Hoping for ...Rxe1+.} 27. Rxe6 {[%emt 0:00:57]} Qxe6 {[%emt 0:01:07]} 28. a3 {[%emt 0:01:36]} (28. Qe2 $11 {keeps the balance.}) 28... Na2 {[%emt 0:05:15]} ({Black should try} 28... Nd3 $17 29. Rc7 Re8) 29. Rc6 {[%emt 0:00:46]} Qe7 {[%emt 0:00:52]} ({Don't play} 29... Nc3 30. Rxe6 Nxd1 31. Re7 $16) 30. b4 {[%emt 0:01:56]} ({Not} 30. Nc4 $2 Rxb3 $19) (30. Qe2 $1 $11 Re8 31. Qxe7 Rxe7 32. h3) 30... Nc3 $17 {[%emt 0:00:44]} 31. Qf1 {[%emt 0:00:21]} (31. Qc1 $17) 31... Re8 $1 $19 {[%emt 0:02:13] Strongly threatening ...Qe1.} 32. h3 {[%emt 0:01:26] [#]} Bxh3 {[%emt 0:08:02]} (32... Qg5 $1 $19 {[%cal Rg5d2][%mdl 512]} 33. Nc4 (33. Nb3 Qf4) 33... Qf4) 33. Nb3 {[%emt 0:02:37]} (33. Rc4 $17) 33... Bd7 {[%emt 0:00:46]} 34. Rc7 {[%emt 0:01:14]} (34. Rc5 {was necessary.} Qf6 35. Qa1) 34... Qd6 {[%emt 0:00:29]} 35. Rc5 {[%emt 0:01:06]} a6 {[%emt 0:01:21] ...Bb5 is the strong threat.} 36. g3 {[%emt 0:00:32]} Qf6 {[%emt 0:02:16]} 37. Kg2 {[%emt 0:00:10] [#]} Bb5 {[%emt 0:00:30] Dodges Qd3} (37... Ne4 $1 $19 38. Bxe4 Rxe4) 38. Qc1 $17 {[%emt 0:00:23][%cal Ob3d4]} Be2 {[%emt 0:00:44] [#]} (38... Na4 $17 39. Rc6 Qd8) 39. Nxd4 $1 $14 {[%emt 0:00:45]} Bxf3+ {[%emt 0:00:49]} 40. Nxf3 {[%emt 0:00:04]} Ne4 {[%emt 0:00:30]} 41. Qe3 {[%emt 0:30:30]} Re6 {[%emt 0:32:15]} (41... Qd6 $14) 42. Rc8+ $16 {[%emt 0:01:08]} Kh7 {[%emt 0:00:19][%cal Oe4g3]} 43. Qd3 {[%emt 0:00:19]} (43. Nd4 $16 Re7 44. Rc6) 43... g6 $14 {[%emt 0:01:11]} 44. Qd8 {[%emt 0:01:27]} Qxd8 {[%emt 0:01:53]} 45. Rxd8 {[%emt 0:00:06]} Rc6 {[%emt 0:00:00] Black had all chances to win.   Weighted Error Value: White=0.28 (precise) /Black=0.29 (precise)} 1/2-1/2

[Event "1st FIDE Olympiad DIS 2023"]
[Site "Belgrade"]
[Date "2023.01.30"]
[Round "1.28"]
[White "Ilic, Slobodan S"]
[Black "Sarkar, Ali Newaz"]
[Result "1-0"]
[ECO "A29"]
[WhiteElo "2174"]
[BlackElo "1809"]
[Annotator "TA"]
[PlyCount "187"]
[EventDate "2023.01.30"]
[EventType "team-tourn"]
[EventCountry "SRB"]
[SourceTitle "playchess.com"]
[Source "ChessBase"]
[SourceQuality "1"]
[WhiteTeam "Serbia"]
[BlackTeam "Bangladesh"]
[WhiteTeamCountry "BIH"]
[BlackTeamCountry "BAN"]
[TimeControl "40/5400+30:1800+30"]

{[%evp 13,187,23,21,22,24,19,22,8,21,23,27,37,33,29,72,54,154,31,36,31,31,8,8,12,0,2,72,40,85,60,54,35,45,70,104,102,72,91,79,26,33,23,17,10,15,22,17,22,20,17,19,0,0,0,0,0,0,0,7,0,8,8,8,0,0,0,0,-8,0,0,0,0,1,8,44,11,64,45,45,0,70,51,95,95,95,95,95,46,65,43,137,50,50,32,46,0,46,29,32,0,46,0,39,0,52,0,46,0,46,0,46,17,17,17,21,9,66,66,66,66,107,0,1399,1595,9952,8054,5631,6087,29966,12112,29972,29972,29964,29970,29975,29977,29978,29979,29980,29981,29982,29983,29983,29984,29989,29984,29984,29985,29985,29986,29987,29988,29988,29989,29989,29990,29990,29991,29991,29992,29992,29991,29991,29990,29990,29991,29991,29992,29992,29992,29992,29993,29993,29994,29996,29996]} 1. c4 {[%emt 0:00:06]} e5 {[%emt 0:01:39]} 2. Nc3 {[%emt 0:00:26]} Nf6 {[%emt 0:00:31]} 3. Nf3 {[%emt 0:00:18]} Nc6 {[%emt 0:01:07]} 4. g3 {[%emt 0:00:36]} a6 {[%emt 0:03:17]} 5. Bg2 {[%emt 0:00:33]} Bc5 {[%emt 0:00:40]} 6. O-O {[%emt 0:03:39]} O-O {[%emt 0:00:50]} 7. e3 {[%emt 0:01:30]} d6 {[%emt 0:01:54]} 8. h3 {[%emt 0:05:34] A29: English Opening: Four Knights Variation with 4 g3.} Ba7 {[%emt 0:01:26]} 9. d4 {[%emt 0:00:55]} Bf5 {[%emt 0:03:52]} 10. a3 {[%emt 0:04:06] The position is equal.} h6 {[%emt 0:00:23]} 11. b4 {[%emt 0:04:08]} e4 {[%emt 0:06:19]} 12. Nd2 {[%emt 0:00:55]} Re8 {[%emt 0:00:25]} 13. Bb2 {[%emt 0:03:36] [#]} Qd7 $146 {[%emt 0:04:15]} ({Predecessor:} 13... h5 14. Nd5 Nxd5 15. cxd5 Ne7 16. Bxe4 Bxe4 17. Nxe4 Ng6 18. Qf3 h4 19. Kh2 Qe7 {1-0 Belous,V (2551)-Esipenko,A (2203) Dvorkovich Memorial op 8th 2013 (7)}) 14. Kh2 {[%emt 0:00:32]} (14. g4 $5 {[%cal Rg4f5]} Bg6 15. Rc1 $16) 14... Nd8 {[%emt 0:02:51]} (14... Bg6 $14) 15. Ne2 {[%emt 0:04:02]} (15. g4 $16 Bg6 16. d5) 15... d5 $14 {[%emt 0:01:21]} 16. cxd5 {[%emt 0:08:23]} Nxd5 {[%emt 0:02:41]} 17. Nc3 {[%emt 0:08:17]} (17. g4 $5 {[%cal Rg4f5]} Bg6 18. Ng3 $14) 17... Nxc3 {[%emt 0:02:12]} 18. Bxc3 {[%emt 0:00:04]} c6 {[%emt 0:01:57]} 19. a4 {[%emt 0:01:30]} Bh7 {[%emt 0:03:52]} (19... Bb6 $11 {keeps the balance.}) 20. Qb3 {[%emt 0:03:59][%cal Ob4b5]} Qd5 {[%emt 0:02:02]} 21. Qxd5 {[%emt 0:06:51]} cxd5 {[%emt 0:00:27]} 22. b5 {[%emt 0:00:19]} Rc8 {[%emt 0:01:06]} 23. Rfc1 {[%emt 0:00:53]} Bf5 {[%emt 0:01:42] [#]} 24. bxa6 $1 {[%emt 0:03:06]} bxa6 {[%emt 0:02:05]} 25. Bf1 {[%emt 0:00:40]} Re6 {[%emt 0:02:10]} 26. Bb2 {[%emt 0:03:53]} (26. g4 $16 Rec6 27. gxf5 Rxc3 28. Nb3 (28. Rxc3 Rxc3 29. Kg2 Rc2 $11)) 26... Rec6 $11 {[%emt 0:00:34]} 27. Rxc6 {[%emt 0:00:54]} Rxc6 {[%emt 0:04:22]} 28. Rc1 {[%emt 0:00:36] Prevents Rc2.} Rxc1 {[%emt 0:00:39]} 29. Bxc1 {[%emt 0:00:04]} Bc8 {[%emt 0:07:28]} 30. Nb3 {[%emt 0:00:38]} Nc6 {[%emt 0:00:34]} 31. Ba3 {[%emt 0:01:09]} f6 {[%emt 0:01:27]} 32. Nc5 {[%emt 0:07:36]} Bxc5 {[%emt 0:00:51]} 33. Bxc5 {[%emt 0:00:35][%mdl 4096] Endgame KBB-KBN} Kf7 {[%emt 0:01:03]} 34. Be2 {[%emt 0:00:52]} Na5 {[%emt 0:00:36]} 35. g4 {[%emt 0:01:35]} Nb3 {[%emt 0:00:54] Hoping for ...Nxc5.} 36. Ba3 {[%emt 0:01:40]} Nd2 {[%emt 0:04:59]} 37. Kg3 {[%emt 0:02:47]} Nc4 {[%emt 0:06:03]} 38. Bc5 {[%emt 0:03:28]} Bd7 {[%emt 0:00:43]} 39. Bd1 {[%emt 0:01:05]} Nb2 {[%emt 0:01:10]} 40. Bb3 {[%emt 0:00:26]} Bc6 {[%emt 0:01:02]} 41. a5 {[%emt 0:34:08]} Ke6 {[%emt 0:33:32]} 42. Ba3 {[%emt 0:06:27] A strong pair of Bishops.} Nc4 {[%emt 0:01:42]} 43. Bb4 {[%emt 0:00:17]} f5 {[%emt 0:03:08]} 44. h4 {[%emt 0:04:03]} Kf6 {[%emt 0:01:40]} ({Black should try} 44... fxg4 $11 45. h5 Be8) 45. Bc3 {[%emt 0:02:59] Black must now prevent Bxc4.} Nd6 {[%emt 0:03:28]} 46. Bb4 {[%emt 0:00:34]} Nf7 {[%emt 0:01:54]} (46... Nc4 $11) 47. Bd1 {[%emt 0:02:35]} g6 {[%emt 0:01:56]} 48. gxf5 {[%emt 0:00:00]} Kxf5 {[%emt 0:00:00]} 49. Be2 {[%emt 0:00:00]} Bb7 {[%emt 0:00:00]} 50. Bg4+ {[%emt 0:00:00]} Kf6 {[%emt 0:00:00]} 51. Bd7 {[%emt 0:00:00] White is more active.} g5 {[%emt 0:00:00] [#]} (51... Nd8 $14) 52. hxg5+ {[%emt 0:00:00]} (52. h5 $1 $16) 52... hxg5 $14 {[%emt 0:00:00]} 53. Be8 {[%emt 0:00:00]} Nd8 {[%emt 0:00:00]} 54. Bd7 {[%emt 0:00:00]} (54. Bc5 $14 {might be stronger.}) 54... Bc6 {[%emt 0:00:00]} (54... Nf7 $11 {is more appropriate.}) 55. Bc8 {[%emt 0:00:00]} Bb7 {[%emt 0:00:00]} 56. Bd7 {[%emt 0:00:00]} Bc6 {[%emt 0:00:00]} (56... Nf7 $11 {deserves consideration.}) 57. Bc8 {[%emt 0:00:00]} Bb7 {[%emt 0:00:00]} 58. Bd7 {[%emt 0:00:00]} Nf7 {[%emt 0:00:00]} 59. Be8 {[%emt 0:00:00]} Nd8 $1 {[%emt 0:00:00]} 60. Bd7 {[%emt 0:00:00]} (60. Bd6 $14 {was preferrable.}) 60... Bc6 {[%emt 0:00:00]} (60... Nf7 $11) 61. Bc8 {[%emt 0:00:00]} (61. Bg4 $14 {is superior.}) 61... Bb5 {[%emt 0:00:00]} (61... Bb7 $1 $11 62. Bh3 Nc6) 62. Bg4 {[%emt 0:00:00]} Nc6 {[%emt 0:00:00]} 63. Bd2 {[%emt 0:00:00]} Ke7 {[%emt 0:00:00]} 64. f4 {[%emt 0:00:00]} gxf4+ {[%emt 0:00:00]} ({Black should play} 64... Kf6 $11) 65. Kxf4 {[%emt 0:00:00]} Kf6 {[%emt 0:01:35]} 66. Be1 {[%emt 0:00:00]} Kg6 {[%emt 0:00:44]} 67. Bd7 {[%emt 0:00:00]} ({Better is} 67. Be6 $16 Bc4 68. Bd7) 67... Na7 $2 {[%emt 0:00:43][%mdl 8192] White now steadily converts the win.} (67... Nxd4 $11 68. Bxb5 Nxb5) 68. Bxb5 $18 {[%emt 0:00:00]} Nxb5 {[%emt 0:01:28] KB-KN} 69. Ke5 {[%emt 0:00:38]} Na3 {[%emt 0:02:24]} 70. Kxd5 {[%emt 0:00:00][%cal Oe1b4] Intending Bb4! and mate.} Kf5 {[%emt 0:00:15]} 71. Kc5 {[%emt 0:00:00] Threatening mate with Bb4.} Nc2 {[%emt 0:01:43]} 72. Bd2 {[%emt 0:00:00] White mates.} Na3 {[%emt 0:00:56]} 73. Bc1 {[%emt 0:00:48]} Nb5 {[%emt 0:01:16]} 74. Kb6 {[%emt 0:00:24]} Ke6 {[%emt 0:00:16]} 75. Kxa6 {[%emt 0:00:28]} Nc7+ {[%emt 0:01:23]} 76. Kb7 {[%emt 0:00:25]} Kd7 {[%emt 0:00:48]} 77. a6 {[%emt 0:00:24]} Nb5 {[%emt 0:00:30]} 78. a7 {[%emt 0:00:26]} Nc7 {[%emt 0:02:08]} 79. a8=Q {[%emt 0:00:32]} Nxa8 {[%emt 0:00:44]} 80. Kxa8 {[%emt 0:00:17] KB-KP} Kc6 {[%emt 0:00:29]} 81. Ba3 {[%emt 0:00:16]} Kc7 {[%emt 0:00:39]} 82. d5 {[%emt 0:00:15][%cal Bd4d5,Bd5d6][%mdl 32]} Kc8 {[%emt 0:00:27]} 83. d6 {[%emt 0:00:12]} Kd8 {[%emt 0:00:42]} 84. Kb7 {[%emt 0:00:14]} Kd7 {[%emt 0:00:11]} 85. Kb6 {[%emt 0:00:34]} Kc8 {[%emt 0:00:13]} 86. Kc6 {[%emt 0:00:21]} Kd8 {[%emt 0:00:12]} 87. Kd5 {[%emt 0:00:09]} Kd7 {[%emt 0:00:28]} 88. Kxe4 {[%emt 0:00:10]} Ke6 {[%emt 0:00:13]} 89. Kd4 {[%emt 0:00:11]} Kd7 {[%emt 0:00:16]} 90. Kd5 {[%emt 0:00:09]} Kd8 {[%emt 0:00:31]} 91. e4 {[%emt 0:00:10][%cal Be3e4,Be4e5,Be5e6][%mdl 32]} Kd7 {[%emt 0:00:16]} 92. e5 {[%emt 0:00:10]} Ke8 {[%emt 0:00:06]} 93. e6 {[%emt 0:00:23]} Kd8 {[%emt 0:00:06]} 94. Bc5 {[%emt 0:03:34] Weighted Error Value: White=0.19 (very precise) /Black=0.17 (very precise)} 1-0

[Event "1st FIDE Olympiad DIS 2023"]
[Site "Belgrade"]
[Date "2023.01.30"]
[Round "1.29"]
[White "Jimenez Moron, Elias"]
[Black "Shashikant, Kutwal"]
[Result "0-1"]
[ECO "A45"]
[WhiteElo "1967"]
[BlackElo "2182"]
[Annotator "TA"]
[PlyCount "68"]
[EventDate "2023.01.30"]
[EventType "team-tourn"]
[EventCountry "SRB"]
[SourceTitle "playchess.com"]
[Source "ChessBase"]
[SourceQuality "1"]
[WhiteTeam "Panama"]
[BlackTeam "India"]
[WhiteTeamCountry "PAN"]
[BlackTeamCountry "IND"]
[TimeControl "40/5400+30:1800+30"]

{[%evp 9,68,-14,-20,-43,-29,-36,17,-33,-30,-33,-41,-105,-104,-124,-112,-125,-77,-141,-143,-164,-174,-171,-173,-197,-188,-184,-191,-231,-230,-227,-229,-236,-245,-317,-290,-321,-304,-307,-313,-306,-293,-306,-297,-443,-431,-481,-468,-1005,-913,-1010,-1004,-976,-613,-619,-597,-704,-700,-819,-824,-807,-788]} 1. d4 {[%emt 0:00:05]} Nf6 {[%emt 0:00:11]} 2. c3 {[%emt 0:00:06]} g6 {[%emt 0:00:20]} 3. Bg5 {[%emt 0:00:16]} Bg7 {[%emt 0:00:22]} 4. Bxf6 {[%emt 0:00:23]} Bxf6 {[%emt 0:00:23]} 5. e4 {[%emt 0:00:04]} d6 {[%emt 0:00:45]} 6. f4 {[%emt 0:00:06] [#] A45: Trompowsky Attack.} O-O $146 {[%emt 0:02:47]} ({Predecessor:} 6... e5 7. dxe5 dxe5 8. Qxd8+ Kxd8 9. fxe5 Bxe5 10. Nf3 Bg7 11. Bc4 Ke7 12. Nbd2 Nc6 {0-1 Gerasimowisz,S (1854)-Petraitis,G (1947) Vilnius op 2nd 2012 (5)}) 7. Nf3 {[%emt 0:00:04]} c5 {[%emt 0:05:37]} (7... Bg7 $15) 8. d5 {[%emt 0:05:12]} ({Better is} 8. dxc5 $11 dxc5 9. Qxd8 Rxd8 10. Nbd2) 8... e6 {[%emt 0:02:46]} 9. Bc4 {[%emt 0:05:14]} b5 {[%emt 0:06:23]} 10. Be2 {[%emt 0:07:53]} (10. Bxb5 $15 Qb6 11. Qe2) 10... exd5 $17 {[%emt 0:02:42]} 11. exd5 {[%emt 0:01:06]} a6 {[%emt 0:03:30]} 12. O-O {[%emt 0:00:18]} Bb7 {[%emt 0:01:12]} (12... Re8 $142 13. Qd2 Nd7) 13. Kh1 {[%emt 0:00:39]} (13. a4 $142) 13... Nd7 {[%emt 0:00:37]} 14. Ng1 {[%emt 0:03:20]} Nb6 {[%emt 0:03:07]} 15. Bf3 {[%emt 0:00:08]} Re8 {[%emt 0:01:31][%cal Bf8e8,Be8e3,Be3d3][%mdl 32]} 16. a3 {[%emt 0:04:23]} Re3 {[%emt 0:05:16]} 17. Nd2 {[%emt 0:06:37]} Qe7 {[%emt 0:04:57] Repels Ne4} ({Weaker is} 17... Nxd5 18. Nb3 Rxf3 19. Qxf3 $15) (17... Bxd5 18. Bxd5 Nxd5 19. Rf3 $17) 18. Rb1 {[%emt 0:02:33]} Re8 {[%emt 0:09:57]} ({Inferior is} 18... Nxd5 19. Nb3 Rxf3 20. Rxf3) ({And not} 18... Bxd5 19. Rf2) 19. Rc1 {[%emt 0:14:47]} Bxd5 {[%emt 0:02:45]} 20. Bxd5 {[%emt 0:02:24]} Nxd5 {[%emt 0:00:09]} 21. f5 {[%emt 0:02:05] White is weak on the dark squares} Rd3 {[%emt 0:06:42]} 22. fxg6 {[%emt 0:01:52]} hxg6 {[%emt 0:00:18]} 23. Rf3 {[%emt 0:01:23]} Ne3 {[%emt 0:04:58]} 24. Qe2 {[%emt 0:01:01]} c4 {[%emt 0:00:14]} 25. Nf1 {[%emt 0:02:33]} Ng4 {[%emt 0:05:43]} 26. Qc2 {[%emt 0:06:11]} (26. Qxe7 {is a better defense.} Rxe7 27. Rb1) 26... Bh4 $19 {[%emt 0:05:59] Black is clearly winning.} 27. g3 {[%emt 0:09:22]} Bg5 {[%emt 0:02:11]} 28. Rd1 {[%emt 0:00:47]} (28. Ra1 $142) 28... Qe4 {[%emt 0:02:23] ...Rxd1 is the strong threat.} 29. Rdxd3 {[%emt 0:04:39]} cxd3 {[%emt 0:03:03]} 30. Qg2 {[%emt 0:00:00] [#]} d2 $1 {[%emt 0:00:23][%mdl 512]} 31. Nxd2 {[%emt 0:01:13]} Bxd2 {[%emt 0:00:25]} 32. Qxd2 {[%emt 0:00:17]} Ne5 {[%emt 0:00:19][%mdl 64] Pin} 33. Kg2 {[%emt 0:01:48]} Nxf3 {[%emt 0:00:22]} 34. Nxf3 {[%emt 0:00:03]} Qe2+ {[%emt 0:00:24] Weighted Error Value: White=0.57/Black=0.31} 0-1

[Event "1st FIDE Olympiad DIS 2023"]
[Site "Belgrade"]
[Date "2023.01.30"]
[Round "1.30"]
[White "Kishan, Gangolli"]
[Black "Osorio, Jesus Camilo"]
[Result "1-0"]
[ECO "D27"]
[WhiteElo "2059"]
[BlackElo "1859"]
[Annotator "TA"]
[PlyCount "43"]
[EventDate "2023.01.30"]
[EventType "team-tourn"]
[EventCountry "SRB"]
[SourceTitle "playchess.com"]
[Source "ChessBase"]
[SourceQuality "1"]
[WhiteTeam "India"]
[BlackTeam "Panama"]
[WhiteTeamCountry "IND"]
[BlackTeamCountry "PAN"]
[TimeControl "40/5400+30:1800+30"]

{[%evp 22,43,7,0,4,0,41,5,66,58,49,11,32,34,60,81,186,164,409,410,602,579,1144,1032]} 1. d4 {[%emt 0:00:32]} d5 {[%emt 0:00:18]} 2. c4 {[%emt 0:00:25]} e6 {[%emt 0:00:38]} 3. Nc3 {[%emt 0:00:22]} Nf6 {[%emt 0:00:31]} 4. Nf3 {[%emt 0:00:46]} c6 {[%emt 0:01:01]} 5. e3 {[%emt 0:00:28]} a6 {[%emt 0:02:18]} 6. Be2 {[%emt 0:06:28]} dxc4 {[%emt 0:04:43]} 7. a4 {[%emt 0:02:50]} c5 {[%emt 0:14:17]} 8. Bxc4 {[%emt 0:02:02]} cxd4 {[%emt 0:09:14]} 9. exd4 {[%emt 0:00:00]} Nc6 {[%emt 0:04:40]} 10. O-O {[%emt 0:00:31]} Be7 {[%emt 0:01:58]} 11. Be3 {[%emt 0:05:53]} O-O {[%emt 0:04:08]} 12. Qe2 {[%emt 0:00:48]} Nd5 {[%emt 0:03:59] D27: Queen's Gambit Accepted: Classical main line: 7 e4!? and 7 a4.} 13. Rac1 {[%emt 0:07:27]} b6 {[%emt 0:08:16]} 14. Rfd1 {[%emt 0:03:41]} (14. Ne5 {looks sharper.} Nxc3 15. Rxc3 Nxd4 16. Bxd4 Qxd4 17. Rd1) 14... Bb7 {[%emt 0:05:52]} (14... Ncb4 $11) 15. Nxd5 $14 {[%emt 0:04:59]} exd5 {[%emt 0:01:58]} 16. Ba2 {[%emt 0:00:00]} Nb4 {[%emt 0:01:53]} 17. Bb1 {[%emt 0:00:00]} a5 {[%emt 0:02:36]} 18. Ne5 {[%emt 0:01:32] [#]} g6 $146 {[%emt 0:11:16]} (18... Bc8 $16 {is a better defense.}) ({Predecessor:} 18... f6 19. Qh5 g6 20. Nxg6 Rf7 21. Nh4 Bf8 22. Rc3 Rc8 23. Bh6 Rxc3 24. bxc3 Nc6 25. Nf5 Bc8 26. Bxf8 Bxf5 27. Bxf5 Kxf8 {1-0 Kiselev,S (2510)-Polgar,Z (2560) Moscow blitz 1993}) 19. Bh6 $18 {[%emt 0:01:59]} Re8 $2 {[%emt 0:00:41] [#]} (19... Bd6) 20. Qf3 $1 {[%emt 0:01:21]} Bf6 {[%emt 0:05:34] [#]} (20... Rf8 $142 21. Bxf8 Qxf8) 21. Rc7 $3 {[%emt 0:02:46][%mdl 576] Double Attack} Rb8 {[%emt 0:11:01]} (21... Qd6 22. Ng4) 22. Rd7 {[%emt 0:02:09] Wards off Qd6.   Weighted Error Value: White=0.05 (flawless) /Black=0.98} 1-0